fUSD/lending_fUSD_20250620
["ID","MTS","AMOUNT","RATE_DAILY","PERIOD"]
[366737947,1750425056535,-490.0,0.00026558,4]
[366737949,1750425056545,-882.27,0.00026558,4]
[366737952,1750425056555,-895.07,0.00026558,4]
[366737954,1750425056566,-302.800984,0.00026558,7]
[366737956,1750425056576,-549.63,0.00026558,4]
[366737958,1750425056587,-490.0,0.00026558,4]
[366737960,1750425056600,-490.0,0.00026558,4]
[366737962,1750425056611,-151.0,0.00026558,7]
[366737984,1750425056829,-490.0,0.00026558,4]
[366737986,1750425056840,-490.0,0.00026558,4]
[366737989,1750425056850,-2318.72,0.00026558,4]
[366737991,1750425056861,-824.37,0.00026558,4]
[366737993,1750425056871,-490.0,0.00026558,4]
[366737995,1750425056881,-580.79,0.00026558,4]
[366737997,1750425056891,-153.96,0.00026558,4]
[366737999,1750425056902,-490.0,0.00026558,4]
[366738001,1750425056912,-490.0,0.00026558,4]
[366738003,1750425056922,-490.0,0.00026558,4]
[366738005,1750425056932,-614.17,0.00026558,4]
[366738007,1750425056942,-490.0,0.00026558,4]
[366738009,1750425056952,-490.0,0.00026558,4]
[366738011,1750425056962,-490.0,0.00026558,4]
[366738013,1750425056973,-595.72,0.00026558,4]
[366738015,1750425056983,-151.0,0.00026558,7]
[366738017,1750425056993,-490.0,0.00026558,4]
[366738019,1750425057003,-1149.31,0.00026558,4]
[366738022,1750425057013,-490.0,0.00026558,4]
[366738024,1750425057024,-490.0,0.00026558,4]
[366738026,1750425057034,-490.0,0.00026558,4]
[366738028,1750425057044,-490.0,0.00026558,4]
[366738030,1750425057055,-490.0,0.00026558,4]
[366738032,1750425057065,-490.0,0.00026558,4]
[366738034,1750425057075,-490.0,0.00026558,4]
[366738036,1750425057085,-490.0,0.00026558,4]
[366738038,1750425057096,-500.0,0.00026558,4]
[366738040,1750425057106,-151.0,0.00026558,7]
[366738042,1750425057116,-490.0,0.00026558,4]
[366738044,1750425057128,-360.247694,0.00026558,7]
[366738046,1750425057139,-490.0,0.00026558,4]
[366738048,1750425057150,-360.247694,0.00026558,7]
[366738051,1750425057160,-544.55,0.00026558,4]
[366738053,1750425057171,-490.0,0.00026558,4]
[366738055,1750425057181,-490.0,0.00026558,4]
[366738057,1750425057191,-917.14,0.00026558,4]
[366738059,1750425057201,-269.816138,0.00026558,7]
[366738061,1750425057211,-269.816138,0.00026558,7]
[366738063,1750425057222,-490.0,0.00026558,4]
[366738065,1750425057232,-925.37,0.00026558,4]
[366738067,1750425057243,-715.01,0.00026558,4]
[366738069,1750425057252,-490.0,0.00026558,4]
[366738071,1750425057262,-490.0,0.00026558,4]
[366738073,1750425057273,-490.0,0.00026558,4]
[366738075,1750425057283,-151.0,0.00026558,7]
[366738077,1750425057292,-490.0,0.00026558,4]
[366738079,1750425057303,-1368.22,0.00026558,4]
[366738082,1750425057313,-490.0,0.00026558,4]
[366738084,1750425057323,-490.0,0.00026558,4]
[366738086,1750425057333,-490.0,0.00026558,4]
[366738088,1750425057343,-490.0,0.00026558,4]
[366738090,1750425057353,-169.08,0.00026558,4]
[366738092,1750425057364,-821.26,0.00026558,4]
[366738094,1750425057374,-206.321302,0.00026558,7]
[366738096,1750425057384,-490.0,0.00026558,4]
[366738098,1750425057395,-633.65,0.00026558,4]
[366738100,1750425057405,-393.74,0.00026558,4]
[366738102,1750425057415,-1787.03,0.00026558,4]
[366738104,1750425057425,-614.44,0.00026558,4]
[366738106,1750425057435,-463.75,0.00026558,4]
[366738108,1750425057445,-151.0,0.00026558,7]
[366738110,1750425057456,-490.0,0.00026558,4]
[366738112,1750425057466,-151.0,0.00026558,7]
[366738114,1750425057477,-293.183102,0.00026558,7]
[366738116,1750425057487,-293.183102,0.00026558,7]
[366738119,1750425057497,-490.0,0.00026558,4]
[366738141,1750425057508,-687.9,0.00026558,4]
[366738144,1750425057736,-151.0,0.00026558,7]
[366738145,1750425057746,-490.0,0.00026558,4]
[366738146,1750425057756,-1230.49,0.00026558,4]
[366738147,1750425057766,-847.19,0.00026558,4]
[366738148,1750425057776,-490.0,0.00026558,4]
[366738149,1750425057787,-151.0,0.00026558,7]
[366738150,1750425057797,-303.354071,0.00026558,7]
[366738151,1750425057807,-303.354071,0.00026558,7]
[366738152,1750425057817,-2787.52,0.00026558,4]
[366738153,1750425057827,-1151.55,0.00026558,4]
[366738154,1750425057837,-370.97,0.00026558,4]
[366738155,1750425057847,-1096.2,0.00026558,4]
[366738157,1750425057857,-490.0,0.00026558,4]
[366738158,1750425057867,-922.72,0.00026558,4]
[366738160,1750425057876,-151.0,0.00026558,7]
[366738163,1750425057887,-151.0,0.00026558,7]
[366738165,1750425057899,-151.0,0.00026558,7]
[366738167,1750425057909,-1925.21,0.00026558,4]
[366738169,1750425057919,-490.0,0.00026558,4]
[366738171,1750425057929,-490.0,0.00026558,4]
[366738173,1750425057939,-490.0,0.00026558,4]
[366738175,1750425057948,-490.0,0.00026558,4]
[366738177,1750425057959,-490.0,0.00026558,4]
[366738179,1750425057969,-490.0,0.00026558,4]
[366738181,1750425057979,-151.0,0.00026558,7]
[366738183,1750425057988,-490.0,0.00026558,4]
[366738185,1750425057999,-490.0,0.00026558,4]
[366738187,1750425058008,-151.0,0.00026558,7]
[366738189,1750425058019,-4584.33,0.00026558,4]
[366738191,1750425058029,-995.09,0.00026558,4]
[366738193,1750425058038,-557.77,0.00026558,4]
[366738195,1750425058049,-790.02,0.00026558,4]
[366738197,1750425058058,-490.0,0.00026558,4]
[366738199,1750425058068,-490.0,0.00026558,4]
[366738201,1750425058078,-151.0,0.00026558,7]
[366738204,1750425058088,-151.0,0.00026558,7]
[366738206,1750425058098,-490.0,0.00026558,4]
[366738208,1750425058107,-3469.346953,0.00026558,7]
[366738210,1750425058117,-152.508377,0.00026558,7]
[366738212,1750425058127,-3469.346953,0.00026558,7]
[366738213,1750425058137,-152.508377,0.00026558,7]
[366738216,1750425058147,-151.0,0.00026559,7]
[366738217,1750425058157,-320.275227,0.00026559,7]
[366738219,1750425058167,-151.0,0.00026559,7]
[366738221,1750425058177,-151.0,0.00026559,7]
[366738223,1750425058187,-151.0,0.00026559,7]
[366738225,1750425058196,-151.0,0.00026559,7]
[366738228,1750425058206,-151.0,0.00026559,7]
[366738229,1750425058217,-360.247694,0.00026559,7]
[366738231,1750425058227,-360.247694,0.00026559,7]
[366738234,1750425058237,-269.816138,0.00026559,7]
[366738236,1750425058247,-269.816138,0.00026559,7]
[366738238,1750425058257,-151.0,0.00026559,7]
[366738240,1750425058267,-151.0,0.00026559,7]
[366738242,1750425058277,-802.377668,0.00026559,7]
[366738244,1750425058287,-802.377668,0.00026559,7]
[366738246,1750425058296,-151.0,0.00026559,7]
[366738247,1750425058305,-151.112169,0.0002656,7]
[366738250,1750425058316,-151.0,0.0002656,7]
[366738252,1750425058327,-151.0,0.0002656,7]
[366738254,1750425058337,-151.0,0.0002656,7]
[366738255,1750425058347,-151.0,0.0002656,7]
[366738258,1750425058358,-151.0,0.0002656,7]
[366738260,1750425058368,-159.86016575,0.00026594,2]
[366738262,1750425058378,-2073.85,0.000266,2]
[366738264,1750425058387,-420.0,0.00026684,2]
[366738266,1750425058397,-201.0,0.00026722,4]
[366738268,1750425058407,-392.0,0.00026774,2]
[366738270,1750425058417,-946.0,0.00026819,2]
[366738272,1750425058427,-800.0,0.00026819,2]
[366738274,1750425058437,-162.348,0.00026819,2]
[366738276,1750425058446,-885.0,0.00026819,2]
[366738278,1750425058456,-7114.0,0.00026819,2]
[366738280,1750425058466,-156.0,0.00026819,2]
[366738282,1750425058476,-855.0,0.00026819,2]
[366738284,1750425058486,-4094.0,0.00026819,2]
[366738286,1750425058497,-467.402759,0.00026831,7]
[366738288,1750425058507,-467.402759,0.00026831,7]
[366738290,1750425058517,-490.0,0.00026831,4]
[366738291,1750425058527,-151.0,0.00026831,7]
[366738294,1750425058537,-490.0,0.00026831,4]
[366738296,1750425058547,-490.0,0.00026831,4]
[366738297,1750425058557,-490.0,0.00026831,4]
[366738299,1750425058567,-490.0,0.00026831,4]
[366738301,1750425058577,-1082.4,0.00026831,4]
[366738303,1750425058587,-490.0,0.00026831,4]
[366738305,1750425058597,-490.0,0.00026831,4]
[366738307,1750425058606,-490.0,0.00026831,4]
[366738309,1750425058616,-490.0,0.00026831,4]
[366738311,1750425058626,-490.0,0.00026831,4]
[366738313,1750425058637,-490.0,0.00026831,4]
[366738315,1750425058647,-616.37,0.00026831,4]
[366738317,1750425058657,-582.24,0.00026831,4]
[366738320,1750425058667,-761.34,0.00026831,4]
[366738322,1750425058676,-490.0,0.00026831,4]
[366738323,1750425058686,-490.0,0.00026831,4]
[366738326,1750425058696,-490.0,0.00026831,4]
[366738327,1750425058706,-554.98356975,0.00026831,4]
[366738329,1750425058716,-1662.22,0.00026831,4]
[366738331,1750425058726,-490.0,0.00026831,4]
[366738334,1750425058736,-490.0,0.00026831,4]
[366738336,1750425058746,-490.0,0.00026831,4]
[366738337,1750425058756,-490.0,0.00026831,4]
[366738340,1750425058766,-836.33,0.00026831,4]
[366738342,1750425058776,-151.0,0.00026831,7]
[366738343,1750425058787,-490.0,0.00026831,4]
[366738345,1750425058796,-490.0,0.00026831,4]
[366738348,1750425058806,-362.18736615,0.00026831,4]
[366738349,1750425058816,-490.0,0.00026831,4]
[366738352,1750425058826,-151.0,0.00026831,7]
[366738354,1750425058836,-490.0,0.00026831,4]
[366738356,1750425058845,-490.0,0.00026831,4]
[366738358,1750425058855,-490.0,0.00026831,4]
[366738360,1750425058866,-490.0,0.00026831,4]
[366738362,1750425058876,-490.0,0.00026831,4]
[366738364,1750425058885,-571.19369643,0.00026831,4]
[366738366,1750425058895,-490.0,0.00026831,4]
[366738368,1750425058904,-490.0,0.00026831,4]
[366738370,1750425058914,-490.0,0.00026831,4]
[366738372,1750425058924,-293.183102,0.00026831,7]
[366738374,1750425058934,-293.183102,0.00026831,7]
[366738376,1750425058944,-490.0,0.00026831,4]
[366738378,1750425058954,-267.24792,0.00026831,7]
[366738380,1750425058965,-2028.97,0.00026831,4]
[366738382,1750425058975,-151.0,0.00026831,7]
[366738384,1750425058986,-303.354071,0.00026831,7]
[366738386,1750425058996,-490.0,0.00026831,4]
[366738388,1750425059007,-303.354071,0.00026831,7]
[366738390,1750425059017,-490.0,0.00026831,4]
[366738392,1750425059028,-939.95,0.00026831,4]
[366738394,1750425059039,-490.0,0.00026831,4]
[366738396,1750425059049,-1297.1,0.00026831,4]
[366738398,1750425059059,-490.0,0.00026831,4]
[366738400,1750425059070,-1628.15,0.00026831,4]
[366738403,1750425059080,-16090.52,0.00026831,4]
[366738405,1750425059092,-151.0,0.00026831,7]
[366738406,1750425059102,-490.0,0.00026831,4]
[366738408,1750425059112,-151.0,0.00026831,7]
[366738410,1750425059122,-490.0,0.00026831,4]
[366738413,1750425059133,-151.0,0.00026831,7]
[366738414,1750425059143,-490.0,0.00026831,4]
[366738416,1750425059152,-490.0,0.00026831,4]
[366738418,1750425059162,-3649.34,0.00026831,4]
[366738420,1750425059172,-490.0,0.00026831,4]
[366738423,1750425059183,-490.0,0.00026831,4]
[366738424,1750425059193,-643.98,0.00026831,4]
[366738427,1750425059203,-593.25,0.00026831,4]
[366738429,1750425059213,-558.08,0.00026831,4]
[366738431,1750425059223,-490.0,0.00026831,4]
[366738433,1750425059233,-490.0,0.00026831,4]
[366738435,1750425059243,-613.34,0.00026831,4]
[366738437,1750425059253,-730.32,0.00026831,4]
[366738439,1750425059262,-1933.21,0.00026831,4]
[366738441,1750425059273,-1122.74,0.00026831,4]
[366738443,1750425059282,-490.0,0.00026831,4]
[366738445,1750425059292,-2397.6,0.00026831,4]
[366738447,1750425059302,-490.0,0.00026831,4]
[366738449,1750425059312,-490.0,0.00026831,4]
[366738451,1750425059322,-490.0,0.00026831,4]
[366738453,1750425059332,-490.0,0.00026831,4]
[366738455,1750425059342,-490.0,0.00026831,4]
[366738457,1750425059352,-490.0,0.00026831,4]
[366738459,1750425059362,-490.0,0.00026831,4]
[366738461,1750425059371,-1227.78,0.00026831,4]
[366738463,1750425059382,-261.24,0.00026831,4]
[366738465,1750425059391,-490.0,0.00026831,4]
[366738467,1750425059402,-551.34,0.00026831,4]
[366738469,1750425059412,-490.0,0.00026831,4]
[366738471,1750425059422,-522.59,0.00026831,4]
[366738473,1750425059434,-582.66,0.00026831,4]
[366738475,1750425059444,-268.43,0.00026831,4]
[366738477,1750425059454,-606.44692583,0.00026831,4]
[366738479,1750425059464,-490.0,0.00026831,4]
[366738482,1750425059475,-490.0,0.00026831,4]
[366738484,1750425059485,-490.0,0.00026831,4]
[366738486,1750425059495,-490.0,0.00026831,4]
[366738488,1750425059504,-490.0,0.00026831,4]
[366738490,1750425059514,-822.96852469,0.00026831,4]
[366738546,1750425060111,-555.4,0.00025735,4]
[366738547,1750425060120,-151.0,0.00025736,7]
[366738548,1750425060130,-300.691172,0.00026,7]
[366738549,1750425060139,-555.4,0.00026009,4]
[366738550,1750425060148,-490.0,0.00026283,4]
[366738551,1750425060158,-555.4,0.00026283,4]
[366738552,1750425060167,-490.0,0.00026557,4]
[366738553,1750425060176,-555.4,0.00026557,4]
[366738554,1750425060185,-106.35147531,0.00026831,4]
[366738555,1750425060197,-616.11,0.00026831,4]
[366738557,1750425060206,-490.0,0.00026831,4]
[366738559,1750425060216,-337.31949256,0.00026831,4]
[366738562,1750425060235,-152.68050744,0.00026831,4]
[366738564,1750425060245,-151.0,0.00026831,7]
[366738566,1750425060255,-880.22,0.00026831,4]
[366738567,1750425060264,-490.0,0.00026831,4]
[366738570,1750425060274,-747.33,0.00026831,4]
[366738571,1750425060284,-699.01,0.00026831,4]
[366738573,1750425060293,-299.14,0.00026831,4]
[366738575,1750425060303,-622.69,0.00026831,4]
[366738577,1750425060313,-490.0,0.00026831,4]
[366738579,1750425060323,-490.0,0.00026831,4]
[366738581,1750425060334,-3469.346953,0.00026831,7]
[366738583,1750425060343,-152.508377,0.00026831,7]
[366738585,1750425060353,-509.64283679,0.00026831,4]
[366738587,1750425060363,-1479.65532577,0.00026831,7]
[366738996,1750425064595,-1989.69162723,0.00026831,7]
[366738998,1750425064607,-152.508377,0.00026831,7]
[366739001,1750425064619,-1104.09,0.00026831,2]
[366739003,1750425064631,-4453.74,0.00026831,4]
[366739005,1750425064643,-490.0,0.00026831,4]
[366739007,1750425064654,-636.41,0.00026831,4]
[366739009,1750425064666,-490.0,0.00026831,4]
[366739011,1750425064678,-490.0,0.00026831,4]
[366739013,1750425064689,-1166.78,0.00026831,4]
[366739015,1750425064701,-490.0,0.00026831,4]
[366739018,1750425064712,-490.0,0.00026831,4]
[366739020,1750425064723,-490.0,0.00026831,2]
[366739022,1750425064737,-580.87,0.00026831,4]
[366739024,1750425064749,-490.0,0.00026831,4]
[366739026,1750425064760,-490.0,0.00026831,4]
[366739028,1750425064772,-490.0,0.00026831,4]
[366739030,1750425064782,-490.0,0.00026831,4]
[366739032,1750425064793,-555.4,0.00026831,4]
[366739035,1750425064804,-399.57889482,0.00026831,15]
[366739036,1750425064814,-151.0,0.00026832,7]
[366739037,1750425064825,-203.498324,0.00026832,7]
[366739038,1750425064836,-151.0,0.00026832,7]
[366739039,1750425064847,-203.498324,0.00026832,7]
[366739040,1750425064858,-200.897302,0.00026832,7]
[366739041,1750425064869,-200.897302,0.00026832,7]
[366739042,1750425064880,-151.0,0.00026832,7]
[366739043,1750425064891,-249.788896,0.00026832,7]
[366739044,1750425064903,-249.788896,0.00026832,7]
[366739045,1750425064913,-335.813999,0.00026832,7]
[366739046,1750425064924,-335.813999,0.00026832,7]
[366739047,1750425064935,-490.0,0.00026832,4]
[366739048,1750425064946,-151.0,0.00026832,7]
[366739049,1750425064958,-151.0,0.00026832,7]
[366739050,1750425064969,-490.0,0.00026832,4]
[366739051,1750425064981,-490.0,0.00026832,4]
[366739052,1750425064999,-151.0,0.00026832,7]
[366739053,1750425065012,-151.0,0.00026832,7]
[366739055,1750425065024,-490.0,0.00026832,4]
[366739057,1750425065036,-490.0,0.00026832,4]
[366739059,1750425065048,-516.98,0.00026832,4]
[366739086,1750425065310,-490.0,0.00026832,4]
[366739089,1750425065322,-490.0,0.00026832,4]
[366739090,1750425065333,-490.0,0.00026832,4]
[366739093,1750425065343,-490.0,0.00026832,4]
[366739095,1750425065359,-667.016739,0.00026832,7]
[366739097,1750425065369,-490.0,0.00026832,4]
[366739099,1750425065380,-667.016739,0.00026832,7]
[366739101,1750425065390,-490.0,0.00026832,4]
[366739103,1750425065400,-355.97510072,0.00026832,4]
[366739106,1750425065411,-706.9,0.00026832,4]
[366739108,1750425065421,-490.0,0.00026832,4]
[366739110,1750425065431,-490.0,0.00026832,4]
[366739112,1750425065441,-490.0,0.00026832,4]
[366739114,1750425065451,-490.0,0.00026832,4]
[366739116,1750425065462,-151.0,0.00026832,7]
[366739118,1750425065473,-151.0,0.00026832,7]
[366739120,1750425065484,-490.0,0.00026832,4]
[366739122,1750425065494,-490.0,0.00026832,4]
[366739124,1750425065504,-151.0,0.00026832,7]
[366739126,1750425065514,-490.0,0.00026832,4]
[366739128,1750425065525,-896.521458,0.00026832,7]
[366739130,1750425065536,-490.0,0.00026832,4]
[366739133,1750425065549,-151.0,0.00026832,7]
[366739135,1750425065559,-151.0,0.00026832,7]
[366739137,1750425065569,-467.402759,0.00026832,7]
[366739139,1750425065580,-490.0,0.00026832,4]
[366739141,1750425065592,-151.0,0.00026832,7]
[366739143,1750425065602,-467.402759,0.00026832,7]
[366739145,1750425065613,-490.0,0.00026832,4]
[366739147,1750425065623,-490.0,0.00026832,4]
[366739149,1750425065636,-353.493329,0.00026832,7]
[366739151,1750425065647,-353.493329,0.00026832,7]
[366739153,1750425065658,-490.0,0.00026832,4]
[366739155,1750425065669,-386.48,0.00026832,4]
[366739157,1750425065680,-490.0,0.00026832,4]
[366739160,1750425065691,-347.242006,0.00026832,7]
[366739162,1750425065701,-347.242006,0.00026832,7]
[366739164,1750425065712,-151.0,0.00026832,7]
[366739166,1750425065724,-161.53,0.00026832,4]
[366739168,1750425065734,-882.27,0.00026832,4]
[366739169,1750425065745,-895.07,0.00026832,4]
[366739172,1750425065757,-302.800984,0.00026832,7]
[366739174,1750425065767,-490.0,0.00026832,4]
[366739175,1750425065778,-490.0,0.00026832,4]
[366739176,1750425065789,-151.0,0.00026832,7]
[366739177,1750425065800,-490.0,0.00026832,4]
[366739178,1750425065816,-490.0,0.00026832,4]
[366739179,1750425065826,-2318.72,0.00026832,4]
[366739180,1750425065838,-824.37,0.00026832,4]
[366739181,1750425065849,-490.0,0.00026832,4]
[366739182,1750425065860,-580.79,0.00026832,4]
[366739183,1750425065871,-490.0,0.00026832,4]
[366739184,1750425065881,-421.47,0.00026832,4]
[366739185,1750425065892,-490.0,0.00026832,4]
[366739186,1750425065902,-614.17,0.00026832,4]
[366739187,1750425065914,-421.21,0.00026832,4]
[366739188,1750425065924,-490.0,0.00026832,4]
[366739189,1750425065934,-490.0,0.00026832,4]
[366739190,1750425065945,-595.72,0.00026832,4]
[366739191,1750425065956,-490.0,0.00026832,4]
[366739192,1750425065968,-1149.31,0.00026832,4]
[366739193,1750425065978,-490.0,0.00026832,4]
[366739194,1750425065990,-490.0,0.00026832,4]
[366739195,1750425066000,-490.0,0.00026832,4]
[366739196,1750425066011,-490.0,0.00026832,4]
[366739197,1750425066021,-490.0,0.00026832,4]
[366739198,1750425066031,-490.0,0.00026832,4]
[366739199,1750425066042,-490.0,0.00026832,4]
[366739200,1750425066052,-490.0,0.00026832,4]
[366739201,1750425066063,-500.0,0.00026832,4]
[366739202,1750425066073,-151.0,0.00026832,7]
[366739203,1750425066084,-628.8,0.00026832,4]
[366739204,1750425066095,-360.247694,0.00026832,7]
[366739205,1750425066107,-490.0,0.00026832,4]
[366739206,1750425066118,-360.247694,0.00026832,7]
[366739207,1750425066128,-334.15,0.00026832,4]
[366739208,1750425066138,-490.0,0.00026832,4]
[366739209,1750425066149,-917.14,0.00026832,4]
[366739210,1750425066159,-269.816138,0.00026832,7]
[366739211,1750425066169,-269.816138,0.00026832,7]
[366739212,1750425066179,-355.41,0.00026832,4]
[366739213,1750425066189,-594.19123284,0.00026832,4]
[366739214,1750425066237,-331.17876716,0.00026832,4]
[366739215,1750425066247,-55.11623244,0.00026832,4]
[366739216,1750425066259,-362.59598088,0.00026832,4]
[366739225,1750425196072,1004.0,0.00026976,60]
[366739226,1750425196095,996.27,0.00026976,60]
[366739227,1750425198203,7.73,0.00025245,120]
[366739228,1750425198574,1004.0,0.00025245,120]
[366739240,1750425492191,201.0,0.00023137,2]
[366739241,1750425510523,163.03,0.00013699,2]
[366739245,1750425533433,161.11,0.00019876,2]
[366739275,1750426212256,201.0,0.00022893,2]
[366739286,1750426232075,-292.54502165,0.00023784,2]
[366739287,1750426232135,-600.0,0.00023784,2]
[366739288,1750426232147,-2128.51713035,0.00023784,2]
[366739289,1750426232157,-200.4,0.00023904,2]
[366739290,1750426232167,-1200.0,0.00023999,2]
[366739291,1750426232177,-5000.0,0.00024,5]
[366739292,1750426232187,-162.371147,0.00024403,2]
[366739293,1750426232197,-1000.0,0.0002442,2]
[366739294,1750426232207,-4206.87,0.00024467,2]
[366739295,1750426232217,-468.45,0.00024562,2]
[366739296,1750426232227,-250.0,0.00024562,2]
[366739297,1750426232237,-820.41,0.00024587,2]
[366739298,1750426232247,-200.0,0.00024626,2]
[366739299,1750426232256,-154.94,0.00024638,2]
[366739300,1750426232266,-1224.26,0.00024723,2]
[366739301,1750426232276,-201.0,0.00024748,4]
[366739302,1750426232286,-250.0,0.00024805,2]
[366739303,1750426232295,-188.76,0.00024825,120]
[366739304,1750426232305,-834.11677829,0.00024859,2]
[366739305,1750426232316,-773.55,0.00024862,2]
[366739306,1750426232326,-1350.26,0.00024864,2]
[366739307,1750426232336,-151.0,0.00024938,2]
[366739308,1750426232346,-207.4,0.00024938,2]
[366739309,1750426232356,-1957.856,0.00024938,2]
[366739310,1750426232366,-151.0,0.00024938,2]
[366739311,1750426232376,-23900.0,0.00024953,2]
[366739312,1750426232387,-151.0,0.00024993,2]
[366739314,1750426232396,-454.187936,0.00025,7]
[366739316,1750426232406,-169.82,0.00025022,2]
[366739318,1750426232418,-18443.61,0.00025022,2]
[366739320,1750426232428,-422.1,0.00025025,2]
[366739321,1750426232438,-283.09327194,0.00025048,2]
[366739323,1750426232448,-488.27,0.00025245,120]
[366739326,1750426232458,-563.38170383,0.000254,13]
[366739329,1750426232467,-563.38170359,0.000254,13]
[366739332,1750426232477,-157.41119732,0.00025634,2]
[366739335,1750426232487,-3959.2561,0.00025635,2]
[366739337,1750426232497,-633.23768593,0.00025691,2]
[366739338,1750426232506,-157.79,0.00025716,2]
[366739340,1750426232516,-490.0,0.00025725,4]
[366739342,1750426232528,-490.0,0.00025725,2]
[366739344,1750426232539,-490.0,0.00025734,4]
[366739346,1750426232548,-490.0,0.00025734,4]
[366739348,1750426232558,-490.0,0.00025734,4]
[366739350,1750426232568,-490.0,0.00025734,4]
[366739352,1750426232577,-490.0,0.00025734,4]
[366739353,1750426232587,-490.0,0.00025735,4]
[366739355,1750426232596,-490.0,0.00025735,4]
[366739356,1750426232607,-490.0,0.00025735,4]
[366739357,1750426232617,-502.2735841,0.00025735,4]
[366739359,1750426232626,-490.0,0.00025735,4]
[366739361,1750426232636,-490.0,0.00025735,4]
[366739363,1750426232646,-490.0,0.00025735,4]
[366739365,1750426232655,-490.0,0.00025735,4]
[366739367,1750426232665,-490.0,0.00025735,4]
[366739369,1750426232675,-726.07,0.00025735,4]
[366739371,1750426232685,-490.0,0.00025735,4]
[366739373,1750426232694,-490.0,0.00025735,4]
[366739375,1750426232704,-500.0,0.00025735,4]
[366739377,1750426232714,-490.0,0.00025735,4]
[366739379,1750426232724,-490.0,0.00025735,4]
[366739381,1750426232734,-578.44,0.00025735,4]
[366739383,1750426232744,-313.54,0.00025735,4]
[366739385,1750426232754,-212.33,0.00025735,4]
[366739387,1750426232764,-490.0,0.00025735,4]
[366739389,1750426232775,-209.34,0.00025735,4]
[366739391,1750426232785,-371.59,0.00025735,4]
[366739393,1750426232795,-490.0,0.00025735,4]
[366739396,1750426232805,-490.0,0.00025735,4]
[366739398,1750426232815,-490.0,0.00025735,4]
[366739400,1750426232825,-490.0,0.00025735,4]
[366739401,1750426232834,-274.35,0.00025735,4]
[366739403,1750426232844,-490.0,0.00025735,4]
[366739405,1750426232854,-1489.19,0.00025735,4]
[366739408,1750426232864,-490.0,0.00025735,4]
[366739410,1750426232874,-490.0,0.00025735,4]
[366739412,1750426232883,-490.0,0.00025735,4]
[366739414,1750426232893,-490.0,0.00025735,4]
[366739416,1750426232903,-490.0,0.00025735,4]
[366739417,1750426232912,-738.24,0.00025735,4]
[366739419,1750426232922,-490.0,0.00025735,4]
[366739421,1750426232932,-573.25,0.00025735,4]
[366739423,1750426232941,-490.0,0.00025735,4]
[366739425,1750426232951,-705.7,0.00025735,4]
[366739427,1750426232961,-490.0,0.00025735,4]
[366739429,1750426232970,-705.99,0.00025735,4]
[366739431,1750426232980,-490.0,0.00025735,4]
[366739433,1750426232989,-490.0,0.00025735,4]